fUST/lending_fUST_20250218
["ID","MTS","AMOUNT","RATE_DAILY","PERIOD"]
[353438996,1739827843698,-500.0,0.0001378,2]
[353438998,1739827843708,-500.0,0.0001378,2]
[353439000,1739827843717,-500.0,0.0001378,2]
[353439002,1739827843727,-500.0,0.0001378,2]
[353439004,1739827843737,-500.0,0.0001378,2]
[353439006,1739827843747,-276.0,0.0001378,2]
[353439009,1739827843757,-500.0,0.0001378,2]
[353439010,1739827843767,-500.0,0.0001378,2]
[353439012,1739827843776,-500.0,0.0001378,2]
[353439014,1739827843785,-335.07875271,0.0001378,2]
[353439016,1739827843796,-500.0,0.0001378,2]
[353439018,1739827843805,-500.0,0.0001378,2]
[353439020,1739827843815,-500.0,0.0001378,2]
[353439022,1739827843825,-500.0,0.0001378,2]
[353439024,1739827843834,-500.0,0.0001378,2]
[353439026,1739827843845,-500.0,0.0001378,2]
[353439028,1739827843855,-500.0,0.0001378,2]
[353439031,1739827843864,-500.0,0.0001378,2]
[353439032,1739827843874,-500.0,0.0001378,2]
[353439035,1739827843884,-500.0,0.0001378,2]
[353439037,1739827843893,-500.0,0.0001378,2]
[353439039,1739827843904,-500.0,0.0001378,2]
[353439041,1739827843914,-500.0,0.0001378,2]
[353439043,1739827843923,-500.0,0.0001378,2]
[353439045,1739827843933,-500.0,0.0001378,2]
[353439047,1739827843942,-500.0,0.0001378,2]
[353439049,1739827843951,-500.0,0.0001378,2]
[353439051,1739827843961,-500.0,0.0001378,2]
[353439053,1739827843971,-500.0,0.0001378,2]
[353439055,1739827843980,-500.0,0.0001378,2]
[353439057,1739827843990,-362.27843001,0.0001378,2]
[353439059,1739827843999,-500.0,0.0001378,2]
[353439061,1739827844009,-500.0,0.0001378,2]
[353439063,1739827844019,-500.0,0.0001378,2]
[353439065,1739827844029,-500.0,0.0001378,2]
[353439067,1739827844038,-500.0,0.0001378,2]
[353439069,1739827844047,-500.0,0.0001378,2]
[353439071,1739827844057,-572.71,0.0001378,2]
[353439073,1739827844067,-500.0,0.0001378,2]
[353439075,1739827844076,-500.0,0.0001378,2]
[353439077,1739827844086,-629.30575881,0.0001378,2]
[353439079,1739827844095,-500.0,0.0001378,2]
[353439081,1739827844104,-500.0,0.0001378,2]
[353439083,1739827844114,-500.0,0.0001378,2]
[353439085,1739827844123,-500.0,0.0001378,2]
[353439087,1739827844133,-500.0,0.0001378,2]
[353439089,1739827844142,-500.0,0.0001378,2]
[353439091,1739827844151,-500.0,0.0001378,2]
[353439093,1739827844161,-500.0,0.0001378,2]
[353439095,1739827844171,-277.74400914,0.0001378,2]
[353439097,1739827844182,-500.0,0.0001378,2]
[353439100,1739827844192,-500.0,0.0001378,2]
[353439102,1739827844202,-500.0,0.0001378,2]
[353439104,1739827844212,-500.0,0.0001378,2]
[353439106,1739827844221,-500.0,0.0001378,2]
[353439108,1739827844231,-509.4,0.0001378,2]
[353439110,1739827844240,-500.0,0.0001378,2]
[353439112,1739827844249,-231.62992805,0.0001378,2]
[353439114,1739827844258,-500.0,0.0001378,2]
[353439116,1739827844268,-500.0,0.0001378,2]
[353439118,1739827844277,-500.0,0.0001378,2]
[353439120,1739827844287,-500.0,0.0001378,2]
[353439122,1739827844296,-500.0,0.0001378,2]
[353439124,1739827844305,-500.0,0.0001378,2]
[353439126,1739827844315,-500.0,0.0001378,2]
[353439128,1739827844324,-500.0,0.0001378,2]
[353439130,1739827844334,-500.0,0.0001378,2]
[353439132,1739827844343,-500.0,0.0001378,2]
[353439134,1739827844353,-500.0,0.0001378,2]
[353439136,1739827844362,-500.0,0.0001378,2]
[353439138,1739827844371,-500.0,0.0001378,2]
[353439140,1739827844381,-500.0,0.0001378,2]
[353439142,1739827844390,-500.0,0.0001378,2]
[353439144,1739827844400,-500.0,0.0001378,2]
[353439146,1739827844409,-607.16,0.0001378,2]
[353439148,1739827844419,-500.0,0.0001378,2]
[353439150,1739827844428,-500.0,0.0001378,2]
[353439152,1739827844438,-500.0,0.0001378,2]
[353439154,1739827844447,-500.0,0.0001378,2]
[353439156,1739827844457,-500.0,0.0001378,2]
[353439158,1739827844466,-500.0,0.0001378,2]
[353439160,1739827844476,-520.3,0.0001378,2]
[353439162,1739827844486,-500.0,0.0001378,2]
[353439164,1739827844497,-500.0,0.0001378,2]
[353439166,1739827844507,-500.0,0.0001378,2]
[353439168,1739827844516,-500.0,0.0001378,2]
[353439170,1739827844526,-500.0,0.0001378,2]
[353439172,1739827844536,-500.0,0.0001378,2]
[353439174,1739827844546,-500.0,0.0001378,2]
[353439176,1739827844556,-500.0,0.0001378,2]
[353439178,1739827844565,-249.69,0.0001378,2]
[353439180,1739827844575,-500.0,0.0001378,2]
[353439182,1739827844584,-500.0,0.0001378,2]
[353439184,1739827844593,-500.0,0.0001378,2]
[353439186,1739827844602,-500.0,0.0001378,2]
[353439188,1739827844611,-500.0,0.0001378,2]
[353439190,1739827844621,-500.0,0.0001378,2]
[353439192,1739827844631,-241.57,0.0001378,2]
[353439194,1739827844640,-253.58,0.0001378,2]
[353439196,1739827844649,-500.0,0.0001378,2]
[353439198,1739827844658,-557.65,0.0001378,2]
[353439200,1739827844668,-500.0,0.0001378,2]
[353439202,1739827844677,-500.0,0.0001378,2]
[353439204,1739827844686,-500.0,0.0001378,2]
[353439206,1739827844696,-500.0,0.0001378,2]
[353439208,1739827844705,-500.0,0.0001378,2]
[353439210,1739827844715,-500.0,0.0001378,2]
[353439212,1739827844725,-500.0,0.0001378,2]
[353439214,1739827844735,-500.0,0.0001378,2]
[353439216,1739827844744,-309.63,0.0001378,2]
[353439218,1739827844753,-500.0,0.0001378,2]
[353439220,1739827844762,-500.0,0.0001378,2]
[353439222,1739827844772,-1420.31,0.0001378,2]
[353439224,1739827844781,-500.0,0.0001378,2]
[353439226,1739827844792,-500.0,0.0001378,2]
[353439228,1739827844802,-500.0,0.0001378,2]
[353439230,1739827844811,-275.71,0.0001378,2]
[353439232,1739827844820,-500.0,0.0001378,2]
[353439234,1739827844831,-500.0,0.0001378,2]
[353439236,1739827844840,-500.0,0.0001378,2]
[353439238,1739827844849,-500.0,0.0001378,2]
[353439240,1739827844859,-500.0,0.0001378,2]
[353439242,1739827844867,-500.0,0.0001378,2]
[353439244,1739827844877,-500.0,0.0001378,2]
[353439246,1739827844886,-500.0,0.0001378,2]
[353439248,1739827844896,-400.61,0.0001378,2]
[353439250,1739827844905,-500.0,0.0001378,2]
[353439252,1739827844915,-713.36,0.0001378,2]
[353439254,1739827844924,-500.0,0.0001378,2]
[353439256,1739827844934,-475.56,0.0001378,2]
[353439258,1739827844943,-6111.15,0.0001378,2]
[353439260,1739827844953,-768.94,0.0001378,2]
[353439262,1739827844963,-500.0,0.0001378,2]
[353439264,1739827844973,-500.0,0.0001378,2]
[353439266,1739827844982,-500.0,0.0001378,2]
[353439268,1739827844992,-500.0,0.0001378,2]
[353439270,1739827845001,-500.0,0.0001378,2]
[353439272,1739827845010,-500.0,0.0001378,2]
[353439274,1739827845020,-500.0,0.0001378,2]
[353439276,1739827845029,-500.0,0.0001378,2]
[353439278,1739827845038,-500.0,0.0001378,2]
[353439280,1739827845047,-500.0,0.0001378,2]
[353439282,1739827845056,-500.0,0.0001378,2]
[353439284,1739827845065,-500.0,0.0001378,2]
[353439286,1739827845075,-200.0,0.00013863,2]
[353439288,1739827845085,-173.31,0.00013863,2]
[353439290,1739827845094,-248.44,0.00013863,2]
[353439292,1739827845104,-500.0,0.00013863,2]
[353439294,1739827845113,-500.0,0.00013863,2]
[353439296,1739827845122,-500.0,0.00013863,2]
[353439298,1739827845132,-500.0,0.00013863,2]
[353439300,1739827845142,-553.44,0.00013863,2]
[353439302,1739827845151,-500.0,0.00013863,2]
[353439304,1739827845161,-265.00153067,0.00013863,2]
[353439306,1739827845172,-500.0,0.00013863,2]
[353439308,1739827845182,-429.97,0.00013863,2]
[353439310,1739827845192,-500.0,0.00013863,2]
[353439312,1739827845201,-566.49,0.00013863,2]
[353439314,1739827845211,-500.0,0.00013863,2]
[353439316,1739827845222,-570.52,0.00013863,2]
[353439318,1739827845232,-307.22,0.00013863,2]
[353439320,1739827845241,-500.0,0.00013863,2]
[353439322,1739827845250,-605.14,0.00013863,2]
[353439324,1739827845260,-191.37,0.00013863,2]
[353439326,1739827845270,-315.74,0.00013863,2]
[353439327,1739827845281,-500.0,0.00013863,2]
[353439328,1739827845290,-500.0,0.00013863,2]
[353439329,1739827845300,-472.24,0.00013863,2]
[353439330,1739827845310,-500.0,0.00013863,2]
[353439331,1739827845320,-500.0,0.00013863,2]
[353439332,1739827845329,-500.0,0.00013863,2]
[353439333,1739827845338,-500.0,0.00013863,2]
[353439334,1739827845348,-500.0,0.00013863,2]
[353439335,1739827845357,-500.0,0.00013863,2]
[353439336,1739827845367,-500.0,0.00013863,2]
[353439337,1739827845376,-500.0,0.00013863,2]
[353439338,1739827845386,-406.39,0.00013863,2]
[353439339,1739827845396,-500.0,0.00013863,2]
[353439340,1739827845405,-407.06731864,0.00013863,2]
[353439341,1739827845414,-500.0,0.00013863,2]
[353439342,1739827845423,-606.33,0.00013863,2]
[353439343,1739827845433,-500.0,0.00013863,2]
[353439344,1739827845442,-500.0,0.00013863,2]
[353439345,1739827845452,-500.0,0.00013863,2]
[353439347,1739827845465,-500.0,0.00013863,2]
[353439349,1739827845475,-500.0,0.00013863,2]
[353439351,1739827845485,-339.78,0.00013863,2]
[353439353,1739827845495,-500.0,0.00013863,2]
[353439355,1739827845510,-500.0,0.00013863,2]
[353439358,1739827845520,-533.6,0.00013863,2]
[353439360,1739827845530,-500.0,0.00013863,2]
[353439362,1739827845542,-500.0,0.00013863,2]
[353439364,1739827845551,-1420.31,0.00013863,2]
[353439366,1739827845561,-500.0,0.00013863,2]
[353439368,1739827845571,-500.0,0.00013863,2]
[353439370,1739827845582,-230.48143367,0.00013863,2]
[353439372,1739827845592,-500.0,0.00013863,2]
[353439374,1739827845602,-500.0,0.00013863,2]
[353439376,1739827845612,-500.0,0.00013863,2]
[353439378,1739827845622,-500.0,0.00013863,2]
[353439380,1739827845631,-454.78,0.00013863,2]
[353439382,1739827845641,-500.0,0.00013863,2]
[353439384,1739827845651,-713.36,0.00013863,2]
[353439386,1739827845661,-6111.15,0.00013863,2]
[353439388,1739827845671,-768.94,0.00013863,2]
[353439390,1739827845680,-500.0,0.00013863,2]
[353439392,1739827845689,-500.0,0.00013863,2]
[353439394,1739827845699,-500.0,0.00013863,2]
[353439396,1739827845709,-500.0,0.00013863,2]
[353439398,1739827845719,-500.0,0.00013863,2]
[353439400,1739827845728,-500.0,0.00013863,2]
[353439402,1739827845738,-500.0,0.00013863,2]
[353439404,1739827845748,-594.05,0.00013863,2]
[353439406,1739827845758,-7438.69753278,0.00013891,2]
[353439408,1739827845767,-205.39470865,0.00013945,2]
[353439411,1739827845777,-454.34,0.00013945,2]
[353439413,1739827845787,-417.79,0.00013945,2]
[353439415,1739827845797,-500.0,0.00013945,2]
[353439417,1739827845807,-377.4,0.00013945,2]
[353439419,1739827845816,-591.15,0.00013945,2]
[353439421,1739827845826,-500.0,0.00013945,2]
[353439423,1739827845836,-500.0,0.00013945,2]
[353439425,1739827845846,-400.63,0.00013945,2]
[353439427,1739827845855,-500.0,0.00013945,2]
[353439429,1739827845867,-500.0,0.00013945,2]
[353439431,1739827845876,-500.0,0.00013945,2]
[353439433,1739827845886,-500.0,0.00013945,2]
[353439435,1739827845895,-500.0,0.00013945,2]
[353439437,1739827845905,-639.86,0.00013945,2]
[353439439,1739827845915,-500.0,0.00013945,2]
[353439441,1739827845924,-500.0,0.00013945,2]
[353439443,1739827845934,-500.0,0.00013945,2]
[353439445,1739827845943,-500.0,0.00013945,2]
[353439447,1739827845953,-500.0,0.00013945,2]
[353439449,1739827845964,-500.0,0.00013945,2]
[353439451,1739827845973,-500.0,0.00013945,2]
[353439453,1739827845983,-500.0,0.00013945,2]
[353439455,1739827845993,-365.42,0.00013945,2]
[353439457,1739827846002,-500.0,0.00013945,2]
[353439459,1739827846012,-500.0,0.00013945,2]
[353439461,1739827846022,-500.0,0.00013945,2]
[353439464,1739827846031,-500.0,0.00013945,2]
[353439466,1739827846041,-500.0,0.00013945,2]
[353439467,1739827846050,-1420.31,0.00013945,2]
[353439469,1739827846060,-500.0,0.00013945,2]
[353439472,1739827846069,-500.0,0.00013945,2]
[353439473,1739827846079,-500.0,0.00013945,2]
[353439476,1739827846089,-500.0,0.00013945,2]
[353439477,1739827846099,-500.0,0.00013945,2]
[353439479,1739827846108,-500.0,0.00013945,2]
[353439482,1739827846118,-713.36,0.00013945,2]
[353439484,1739827846128,-6111.15,0.00013945,2]
[353439486,1739827846137,-768.94,0.00013945,2]
[353439487,1739827846147,-500.0,0.00013945,2]
[353439489,1739827846157,-500.0,0.00013945,2]
[353439492,1739827846167,-500.0,0.00013945,2]
[353439494,1739827846176,-239.73,0.00013945,2]
[353439495,1739827846186,-500.0,0.00013945,2]
[353439498,1739827846196,-550.42,0.00013945,2]
[353439501,1739827846206,-441.45,0.00013945,2]
[353439504,1739827846216,-200.0,0.0001399,2]
[353439507,1739827846226,-200.0,0.00013994,2]
[353439509,1739827846236,-300.0,0.00014,2]
[353439511,1739827846245,-39533.73170325,0.00014,2]
[353439513,1739827846255,-156.38,0.00014027,2]
[353439515,1739827846264,-348.69145042,0.00014027,2]
[353439516,1739827846274,-500.0,0.00014027,2]
[353439519,1739827846283,-500.0,0.00014027,2]
[353439521,1739827846294,-500.0,0.00014027,2]
[353439533,1739827846407,-500.0,0.00014027,2]
[353439536,1739827846417,-500.0,0.00014027,2]
[353439538,1739827846427,-500.0,0.00014027,2]
[353439540,1739827846437,-500.0,0.00014027,2]
[353439542,1739827846446,-504.98,0.00014027,2]
[353439544,1739827846455,-500.0,0.00014027,2]
[353439546,1739827846465,-500.0,0.00014027,2]
[353439548,1739827846475,-500.0,0.00014027,2]
[353439550,1739827846485,-500.0,0.00014027,2]
[353439552,1739827846496,-500.0,0.00014027,2]
[353439554,1739827846508,-500.0,0.00014027,2]
[353439556,1739827846518,-500.0,0.00014027,2]
[353439558,1739827846527,-399.4,0.00014027,2]
[353439560,1739827846538,-203.55,0.00014027,2]
[353439562,1739827846548,-500.0,0.00014027,2]
[353439563,1739827846557,-500.0,0.00014027,2]
[353439565,1739827846566,-1420.31,0.00014027,2]
[353439567,1739827846577,-500.0,0.00014027,2]
[353439569,1739827846587,-500.0,0.00014027,2]
[353439571,1739827846597,-500.0,0.00014027,2]
[353439573,1739827846606,-500.0,0.00014027,2]
[353439574,1739827846616,-500.0,0.00014027,2]
[353439576,1739827846626,-713.36,0.00014027,2]
[353439578,1739827846636,-6111.15,0.00014027,2]
[353439580,1739827846645,-768.94,0.00014027,2]
[353439582,1739827846655,-500.0,0.00014027,2]
[353439583,1739827846664,-500.0,0.00014027,2]
[353439585,1739827846674,-500.0,0.00014027,2]
[353439587,1739827846683,-201.43,0.00014109,2]
[353439589,1739827846692,-500.0,0.00014109,2]
[353439591,1739827846702,-500.0,0.00014109,2]
[353439593,1739827846712,-460.51,0.00014109,2]
[353439594,1739827846722,-350.79,0.00014109,2]
[353439596,1739827846732,-500.0,0.00014109,2]
[353439598,1739827846741,-500.0,0.00014109,2]
[353439600,1739827846751,-500.0,0.00014109,2]
[353439602,1739827846761,-500.0,0.00014109,2]
[353439604,1739827846770,-420.58,0.00014109,2]
[353439605,1739827846780,-271.41,0.00014109,2]
[353439606,1739827846790,-500.0,0.00014109,2]
[353439608,1739827846799,-569.62,0.00014109,2]
[353439610,1739827846808,-500.0,0.00014109,2]
[353439611,1739827846818,-500.0,0.00014109,2]
[353439613,1739827846827,-500.0,0.00014109,2]
[353439615,1739827846836,-1420.31,0.00014109,2]
[353439617,1739827846846,-500.0,0.00014109,2]
[353439619,1739827846856,-500.0,0.00014109,2]
[353439621,1739827846866,-500.0,0.00014109,2]
[353439623,1739827846876,-500.0,0.00014109,2]
[353439625,1739827846886,-500.0,0.00014109,2]
[353439626,1739827846895,-713.36,0.00014109,2]
[353439628,1739827846904,-6111.15,0.00014109,2]
[353439630,1739827846915,-768.94,0.00014109,2]
[353439632,1739827846924,-500.0,0.00014109,2]
[353439634,1739827846933,-500.0,0.00014109,2]
[353439636,1739827846943,-500.0,0.00014109,2]
[353439638,1739827846953,-470.36,0.00014191,2]
[353439639,1739827846962,-500.0,0.00014191,2]
[353439641,1739827846971,-416.08,0.00014191,2]
[353439643,1739827846981,-500.0,0.00014191,2]
[353439645,1739827846991,-500.0,0.00014191,2]
[353439647,1739827847000,-500.0,0.00014191,2]
[353439649,1739827847010,-500.0,0.00014191,2]
[353439651,1739827847019,-330.07,0.00014191,2]
[353439652,1739827847029,-500.0,0.00014191,2]
[353439654,1739827847038,-500.0,0.00014191,2]
[353439656,1739827847049,-1420.31,0.00014191,2]
[353439657,1739827847059,-500.0,0.00014191,2]
[353439658,1739827847069,-285.74,0.00014191,2]
[353439659,1739827847079,-264.4,0.00014191,2]
[353439660,1739827847089,-620.79,0.00014191,2]
[353439661,1739827847099,-500.0,0.00014191,2]
[353439662,1739827847109,-713.36,0.00014191,2]
[353439663,1739827847119,-6111.15,0.00014191,2]
[353439664,1739827847128,-768.94,0.00014191,2]
[353439665,1739827847138,-500.0,0.00014191,2]
[353439666,1739827847147,-500.0,0.00014191,2]
[353439667,1739827847157,-353.97,0.00014191,2]
[353439668,1739827847167,-500.0,0.00014273,2]
[353439669,1739827847177,-500.0,0.00014273,2]
[353439670,1739827847187,-500.0,0.00014273,2]
[353439671,1739827847196,-500.0,0.00014273,2]
[353439672,1739827847206,-185.35,0.00014273,2]
[353439673,1739827847217,-500.0,0.00014273,2]
[353439674,1739827847227,-500.0,0.00014273,2]
[353439675,1739827847237,-1420.31,0.00014273,2]
[353439676,1739827847247,-500.0,0.00014273,2]
[353439677,1739827847257,-500.0,0.00014273,2]
[353439678,1739827847267,-713.36,0.00014273,2]
[353439679,1739827847277,-6111.15,0.00014273,2]
[353439680,1739827847286,-768.94,0.00014273,2]
[353439681,1739827847296,-500.0,0.00014273,2]
[353439682,1739827847305,-500.0,0.00014273,2]
[353439683,1739827847315,-500.0,0.00014356,2]
[353439684,1739827847325,-154.35827731,0.00014356,2]
[353439685,1739827847335,-500.0,0.00014356,2]
[353439686,1739827847344,-500.0,0.00014356,2]
[353439687,1739827847354,-500.0,0.00014356,2]
[353439688,1739827847364,-238.03,0.00014356,2]
[353439689,1739827847374,-1420.31,0.00014356,2]
[353439690,1739827847384,-500.0,0.00014356,2]
[353439691,1739827847393,-500.0,0.00014356,2]
[353439692,1739827847403,-713.36,0.00014356,2]
[353439693,1739827847413,-6111.15,0.00014356,2]
[353439694,1739827847423,-768.94,0.00014356,2]
[353439695,1739827847433,-500.0,0.00014356,2]
[353439696,1739827847443,-500.0,0.00014356,2]
[353439697,1739827847453,-500.0,0.00014438,2]
[353439698,1739827847463,-500.0,0.00014438,2]
[353439699,1739827847473,-500.0,0.00014438,2]
[353439700,1739827847483,-500.0,0.00014438,2]
[353439701,1739827847493,-1420.31,0.00014438,2]
[353439702,1739827847507,-500.0,0.00014438,2]
[353439703,1739827847516,-500.0,0.00014438,2]
[353439704,1739827847526,-713.36,0.00014438,2]
[353439705,1739827847537,-6111.15,0.00014438,2]
[353439706,1739827847547,-768.94,0.00014438,2]
[353439707,1739827847556,-500.0,0.00014438,2]
[353439708,1739827847565,-500.0,0.00014438,2]
[353439709,1739827847575,-500.0,0.0001452,2]
[353439710,1739827847584,-500.0,0.0001452,2]
[353439711,1739827847594,-500.0,0.0001452,2]
[353439712,1739827847604,-500.0,0.0001452,2]
[353439713,1739827847613,-1420.31,0.0001452,2]
[353439714,1739827847623,-500.0,0.0001452,2]
[353439715,1739827847632,-500.0,0.0001452,2]
[353439716,1739827847642,-713.36,0.0001452,2]
[353439717,1739827847652,-6111.15,0.0001452,2]
[353439718,1739827847662,-768.94,0.0001452,2]
[353439719,1739827847672,-500.0,0.0001452,2]
[353439720,1739827847682,-500.0,0.0001452,2]
[353439721,1739827847691,-362.693019,0.00014601,2]
[353439722,1739827847701,-441.5,0.00014602,2]
[353439723,1739827847711,-500.0,0.00014602,2]
[353439724,1739827847720,-500.0,0.00014602,2]
[353439725,1739827847731,-500.0,0.00014602,2]
[353439726,1739827847740,-1420.31,0.00014602,2]
[353439727,1739827847750,-577.3818856,0.00014602,2]
[353439728,1739827847760,-500.0,0.00014602,2]
[353439729,1739827847770,-713.36,0.00014602,2]
[353439730,1739827847780,-6111.15,0.00014602,2]
[353439731,1739827847790,-768.94,0.00014602,2]
[353439732,1739827847800,-321.08,0.00014602,2]
[353439733,1739827847810,-500.0,0.00014602,2]
[353439734,1739827847820,-500.0,0.00014684,2]
[353439735,1739827847830,-500.0,0.00014684,2]
[353439736,1739827847839,-500.0,0.00014684,2]
[353439737,1739827847849,-1420.31,0.00014684,2]
[353439738,1739827847859,-500.0,0.00014684,2]
[353439739,1739827847870,-713.36,0.00014684,2]
[353439740,1739827847880,-6111.15,0.00014684,2]
[353439741,1739827847889,-768.94,0.00014684,2]
[353439742,1739827847899,-616.49,0.00014684,2]
[353439743,1739827847908,-500.0,0.00014767,2]
[353439744,1739827847916,-500.0,0.00014767,2]
[353439745,1739827847926,-500.0,0.00014767,2]
[353439746,1739827847935,-1420.31,0.00014767,2]
[353439747,1739827847944,-500.0,0.00014767,2]
[353439748,1739827847954,-713.36,0.00014767,2]
[353439749,1739827847964,-6111.15,0.00014767,2]
[353439750,1739827847973,-768.94,0.00014767,2]
[353439751,1739827847983,-500.0,0.00014849,2]
[353439752,1739827847992,-500.0,0.00014849,2]
[353439753,1739827848001,-500.0,0.00014849,2]
[353439754,1739827848011,-1420.31,0.00014849,2]
[353439755,1739827848020,-500.0,0.00014849,2]
[353439756,1739827848030,-713.36,0.00014849,2]
[353439757,1739827848040,-6111.15,0.00014849,2]
[353439758,1739827848050,-768.94,0.00014849,2]
[353439759,1739827848061,-150.0,0.000149,2]
[353439760,1739827848071,-153584.105797,0.000149,2]
[353439761,1739827848084,-500.0,0.00014922,2]
[353439762,1739827848094,-500.0,0.00014922,2]
[353439763,1739827848104,-500.0,0.00014931,2]
[353439764,1739827848114,-500.0,0.00014931,2]
[353439765,1739827848124,-500.0,0.00014931,2]
[353439766,1739827848138,-1420.31,0.00014931,2]
[353439767,1739827848149,-500.0,0.00014931,2]
[353439768,1739827848159,-713.36,0.00014931,2]
[353439769,1739827848171,-6111.15,0.00014931,2]
[353439770,1739827848181,-768.94,0.00014931,2]
[353439771,1739827848191,-500.0,0.00015013,2]
[353439772,1739827848202,-500.0,0.00015013,2]
[353439773,1739827848214,-552.42,0.00015013,2]
[353439774,1739827848225,-771.04409279,0.00015013,2]
[353439775,1739827848367,-500.0,0.00013698,2]
[353439776,1739827848378,-500.0,0.0001378,2]
[353439777,1739827848389,-500.0,0.00013863,2]
[353439778,1739827848399,-649.26590721,0.00015013,2]
[353439779,1739827848410,-500.0,0.00015013,2]
[353439780,1739827848420,-713.36,0.00015013,2]
[353439781,1739827848431,-2026.162412,0.00015013,2]
[353439782,1739827848443,-1793.2949778,0.00015013,2]
[353439783,1739827848529,-500.0,0.00013698,2]
[353439784,1739827848544,-500.0,0.00013698,2]
[353439785,1739827848554,-500.0,0.00013698,2]
[353439786,1739827848564,-469.27890207,0.0001378,2]
[353439787,1739828756101,-217.85843712,0.00012412,2]
[353439788,1739828756124,-217.85843712,0.00012537,2]
[353439789,1739828756146,-350.3386557,0.00012638,2]
[353439790,1739828756169,-179.49933988,0.00012664,2]
[353439791,1739828828074,-172.74200462,0.00012537,2]
[353439792,1739828828097,-320.50066012,0.00012664,2]
[353439793,1739828828124,-1132.16405632,0.00012719,2]
[353439794,1739828839125,-71.86004308,0.00012719,2]
[353439795,1739828839147,-198.81133643,0.00013598,2]
[353439796,1739828839169,-234.72382101,0.00013673,2]
[353439797,1739828849102,-265.27617899,0.00013673,2]
[353439798,1739828849123,-198.81133641,0.0001368,2]
[353439799,1739828849145,-300.0,0.00013696,2]
[353439800,1739828849167,-500.0,0.00013697,2]
[353439801,1739828849187,-500.0,0.00013697,2]
[353439802,1739828849209,-453.78598865,0.00013697,2]
[353439803,1739828849234,-500.0,0.00013697,2]
[353439804,1739828849256,-500.0,0.00013697,2]
[353439805,1739828849279,-500.0,0.00013697,2]
[353439806,1739828849301,-500.0,0.00013697,2]
[353439807,1739828849322,-500.0,0.00013697,2]
[353439808,1739828849345,-500.0,0.00013697,2]
[353439809,1739828849367,-500.0,0.00013697,2]
[353439810,1739828849388,-500.0,0.00013697,2]
[353439811,1739828849412,-500.0,0.00013697,2]
[353439812,1739828849434,-500.0,0.00013697,2]
[353439813,1739828849459,-500.0,0.00013697,2]
[353439814,1739828849481,-500.0,0.00013697,2]
[353439815,1739828849506,-500.0,0.00013697,2]
[353439816,1739828849529,-500.0,0.00013697,2]
[353439817,1739828849552,-500.0,0.00013697,2]
[353439818,1739828849574,-500.0,0.00013697,2]
[353439819,1739828849597,-500.0,0.00013697,2]
[353439820,1739828849620,-500.0,0.00013697,2]